bitfinex-derivatives/quotes_SOLF0:USTF0_20251018
["timestamp","ask_amount","ask_price","bid_price","bid_amount"]
[1760804892875,1.95,184.07,183.99,6.75466781]
[1760804893075,1.95,184.01,183.99,6.75466781]
[1760804893275,1.95,184.01,183.98,6.75466781]
[1760804893680,1.95,184.01,183.98,9.41466781]
[1760804894481,1.95,184.01,183.99,6.75466781]
[1760804894981,4.8897,184.02,183.98,6.75466781]
[1760804895377,1.95,184.01,183.99,6.75466781]
[1760804895777,4.8897,184.02,184.0,2.66]
[1760804897580,4.8897,184.02,184.0,9.41466781]
[1760804898583,1.95,184.01,184.0,6.75466781]
[1760804898978,6.84,184.0,183.97,6.75466781]
[1760804899179,6.84,184.0,183.96,9.51466781]
[1760804899780,6.84,184.0,183.96,6.75466781]
[1760804900080,6.84,184.0,183.97,2.76]
[1760804900383,6.84,184.0,183.97,9.51466781]
[1760804900684,4.8896,184.02,183.98,6.75466781]
[1760804900885,4.8896,184.02,183.99,2.76]
[1760804901076,4.8896,184.02,183.99,9.51466781]
[1760804901378,4.8896,184.02,184.0,2.76]
[1760804901584,4.889,184.04,184.0,2.76]
[1760804901783,4.889,184.04,183.99,6.75466781]
[1760804902478,4.889,184.04,184.0,6.75466781]
[1760804903074,4.8885,184.06,184.03,9.51466781]
[1760804903279,3.32239526,184.08,184.01,6.75466781]
[1760804903484,3.32239526,184.08,184.0,6.75466781]
[1760804903485,1.95,184.07,184.0,6.75466781]
[1760804903683,1.95,184.07,184.01,6.75466781]
[1760804903885,6.8392,184.04,184.01,6.75466781]
[1760804904990,6.8392,184.04,184.01,9.51466781]
[1760804905287,6.8392,184.04,184.02,6.75466781]
[1760804907390,4.8892,184.04,184.02,9.51466781]
[1760804910193,4.8892,184.04,184.03,2.76]
[1760804910395,1.95,184.13,184.04,2.76]
[1760804910595,9.7729,184.14,184.04,9.52159344]
[1760804911291,1.95,184.13,184.04,9.52159344]
[1760804911891,9.7729,184.14,184.04,9.52159344]
[1760804912092,4.888,184.08,184.05,2.76]
[1760804912296,4.888,184.08,184.04,6.76159344]
[1760804913396,4.888,184.08,184.05,2.76]
[1760804913995,4.8875,184.1,184.06,6.76159344]
[1760804914198,1.95,184.14,184.08,9.52159344]
[1760804914996,4.8869,184.12,184.08,6.76159344]
[1760804915199,4.8869,184.12,184.09,2.76]
[1760804915597,4.8869,184.12,184.09,9.52159344]
[1760804915797,4.8869,184.12,184.09,6.76159344]
[1760804915998,4.8869,184.12,184.1,2.76]
[1760804918298,4.8869,184.12,184.08,6.76159344]
[1760804918500,1.95,184.16,184.06,2.76]
[1760804918696,3.32239526,184.15,184.06,2.76]
[1760804919095,1.95,184.14,184.06,2.76]
[1760804919298,3.32239526,184.15,184.06,2.76]
[1760804919299,1.95,184.13,184.06,2.76]
[1760804920003,4.8878,184.09,184.07,5.06063424]
[1760804920807,6.8381,184.08,184.06,5.06063424]
[1760804927314,1.95,184.07,184.06,5.06063424]
[1760804927513,4.8884,184.06,184.05,5.06063424]
[1760804928103,4.8884,184.06,184.05,7.88063424]
[1760804929303,4.8884,184.06,184.05,5.06063424]
[1760804929505,6.8384,184.06,184.05,5.06063424]
[1760804934814,6.8384,184.06,184.03,6.76159344]
[1760804935014,4.8884,184.06,184.05,7.88649273]
[1760804935215,4.8884,184.06,184.05,10.01117414]
[1760804936520,4.8884,184.06,184.05,4.94468141]
[1760804936913,4.8884,184.06,184.04,6.76159344]
[1760804937115,6.8384,184.06,184.04,6.76159344]
[1760804937312,6.8384,184.06,184.05,4.047e-05]
[1760804937623,1.95,184.05,184.04,4.047e-05]
[1760804940713,4.8884,184.06,184.04,4.047e-05]
[1760804940714,4.8884,184.06,184.04,2.12472188]
[1760804940913,4.8884,184.06,184.04,11.70627485]
[1760804941119,4.8884,184.06,184.05,2.82]
[1760804941619,4.8884,184.06,184.05,9.58159344]
[1760804946323,6.8389,184.04,184.03,12.18359761]
[1760804946524,1.95,184.1,184.03,2.12468141]
[1760804946720,1.95,184.12,184.05,2.12468141]
[1760804948423,1.95,184.12,184.07,2.12468141]
[1760804948625,1.95,184.15,184.07,2.12468141]
[1760804948824,4.8881,184.08,184.06,9.44434065]
[1760804953823,1.95,184.11,184.08,2.68]
[1760804953824,4.8875,184.1,184.08,2.68]
[1760804954123,4.8875,184.1,184.09,4.80468141]
[1760804954322,1.95,184.14,184.1,2.68]
[1760804954928,4.8869,184.12,184.09,8.88902206]
[1760804955227,2.12468141,184.18,184.1,6.76434065]
[1760804955529,1.95,184.17,184.1,6.76434065]
[1760804955724,4.8867,184.13,184.11,2.12468141]
[1760804955925,4.8867,184.13,184.11,4.80468141]
[1760804956125,4.8867,184.13,184.11,11.56902206]
[1760804956525,4.8867,184.13,184.11,8.88902206]
[1760804956720,4.8867,184.13,184.12,2.7]
[1760804956926,4.8861,184.15,184.12,2.7]
[1760804957122,4.8861,184.15,184.11,8.88902206]
[1760804957123,4.8861,184.15,184.14,2.7]
[1760804957825,4.8861,184.15,184.13,2.12468141]
[1760804958429,6.8361,184.15,184.11,2.7]
[1760804958730,6.8361,184.15,184.12,4.82468141]
[1760804959930,1.95,184.19,184.12,2.12468141]
[1760804960130,1.95,184.19,184.08,10.0589162]
[1760804960131,4.07468141,184.22,184.14,8.88902206]
[1760804960325,1.95,184.21,184.14,8.88902206]
[1760804960531,1.95,184.21,184.14,2.12468141]
[1760804961033,1.95,184.21,184.15,2.7]
[1760804961034,4.8857,184.17,184.15,2.7]
[1760804963131,6.8357,184.17,184.14,2.12468141]
[1760804963333,6.8357,184.17,184.14,4.82468141]
[1760804963934,6.8357,184.17,184.14,2.7]
[1760804965138,1.95,184.19,184.12,6.76434065]
[1760804965438,1.95,184.19,184.12,11.58902206]
[1760804966939,4.8855,184.17,184.12,11.58902206]
[1760804967140,4.8855,184.17,184.12,8.88902206]
[1760804967337,4.8855,184.17,184.13,2.7]
[1760804967638,6.8355,184.17,184.12,8.88902206]
[1760804968143,6.8355,184.17,184.13,2.7]
[1760804968340,1.95,184.19,184.12,2.12468141]
[1760804968540,2.12468141,184.18,184.11,6.76434065]
[1760804968730,1.95,184.17,184.1,11.58902206]
[1760804969642,1.95,184.17,184.1,6.76434065]
[1760804969941,2.12468141,184.16,184.09,9.46434065]
[1760804970739,1.95,184.17,184.1,6.76434065]
[1760804971042,1.95,184.17,184.11,2.7]
[1760804971941,4.8864,184.14,184.11,2.7]
[1760804972138,4.8864,184.14,184.1,6.76434065]
[1760804972939,4.8864,184.14,184.11,2.7]
[1760804973144,4.8867,184.13,184.11,2.7]
[1760804973947,4.8867,184.13,184.1,2.7]
[1760804974455,2.12468141,184.14,184.1,2.7]
[1760804974456,4.887,184.12,184.1,2.7]
[1760804979355,4.887,184.12,184.09,6.76434065]
[1760804979549,4.887,184.12,184.11,2.7]
[1760804982252,4.887,184.12,184.1,2.7]
[1760804983155,4.887,184.12,184.1,9.46434065]
[1760804983357,4.8873,184.11,184.09,9.46434065]
[1760804983552,4.8873,184.11,184.1,2.7]
[1760804986458,4.8873,184.11,184.1,9.46434065]
[1760804986861,1.95,184.12,184.07,2.8]
[1760804986862,4.8876,184.09,184.07,2.8]
[1760804987260,4.8876,184.09,184.05,10.0589162]
[1760804987855,4.8876,184.09,184.06,2.8]
[1760804988056,4.8876,184.09,184.05,10.0589162]
[1760804988351,4.888,184.08,184.06,2.8]
[1760804989357,4.888,184.08,184.05,10.0589162]
[1760804989661,4.888,184.08,184.06,2.8]
[1760804989957,4.888,184.08,184.05,10.0589162]
[1760804990162,4.888,184.08,184.06,2.8]
[1760804990460,4.888,184.08,184.05,10.0589162]
[1760804990660,4.888,184.08,184.06,2.8]
[1760804991660,4.888,184.08,184.05,10.0589162]
[1760804991856,4.888,184.08,184.06,2.8]
[1760804993053,4.888,184.08,184.05,10.0589162]
[1760804993255,4.888,184.08,184.06,2.8]
[1760804994055,3.31845741,184.14,184.05,10.0589162]
[1760804994056,6.8384,184.07,184.05,10.0589162]
[1760804995363,4.8884,184.07,184.05,12.8589162]
[1760804996063,4.8884,184.07,184.05,2.8]
[1760804996260,4.8878,184.09,184.05,10.0589162]
[1760804996462,4.8878,184.09,184.06,2.8]
[1760804996762,4.8878,184.09,184.05,10.0589162]
[1760804997061,4.8878,184.09,184.0,61.85034567]
[1760804997062,4.8872,184.11,184.06,10.0589162]
[1760804997263,4.8872,184.11,184.07,10.0589162]
[1760804997654,4.8872,184.11,184.08,2.8]
[1760804997965,4.8872,184.11,184.07,10.0589162]
[1760804998162,4.8872,184.11,184.08,2.8]
[1760804998462,4.8872,184.11,184.09,2.8]
[1760804998658,4.8872,184.11,184.08,10.0589162]
[1760804999166,4.8872,184.11,184.09,2.8]
[1760804999355,9.7694,184.21,184.09,2.8]
[1760804999558,1.95,184.18,184.14,5.07433116]
[1760804999760,1.95,184.18,184.15,5.07433116]
[1760804999960,1.95,184.17,184.15,5.07433116]
[1760805000164,1.95,184.18,184.15,5.07433116]
[1760805000565,6.8358,184.16,184.15,5.07433116]
[1760805001668,6.8358,184.16,184.11,2.8]
[1760805001669,6.8358,184.16,184.12,2.8]
[1760805001872,4.8858,184.16,184.12,2.8]
[1760805002169,6.8358,184.16,184.12,12.8589162]
[1760805002369,6.8362,184.15,184.11,12.8589162]
[1760805002569,6.8362,184.15,184.12,2.8]
[1760805002765,3.31845741,184.19,184.05,4.8886]
[1760805002766,1.95,184.18,184.1,10.0589162]
[1760805003165,3.31845741,184.19,184.09,10.0589162]
[1760805003470,6.837,184.12,184.09,10.0589162]
[1760805003671,1.95,184.14,184.08,10.0589162]
[1760805004369,1.95,184.09,184.06,10.0589162]
[1760805004666,1.95,184.09,184.06,12.8589162]
[1760805005268,4.8875,184.1,184.07,2.8]
[1760805005768,4.8875,184.1,184.06,10.0589162]
[1760805006066,6.8375,184.1,184.07,2.8]
[1760805006269,6.8378,184.09,184.06,2.76]
[1760805006470,1.95,184.09,184.06,2.76]
[1760805006668,1.95,184.12,184.04,10.0589162]
[1760805006864,4.888,184.08,184.04,10.0589162]
[1760805007065,3.31845741,184.13,184.04,10.0589162]
[1760805007371,1.95,184.11,184.04,10.0589162]
[1760805008569,1.95,184.09,184.03,2.76]
[1760805008966,1.95,184.12,184.04,10.0589162]
[1760805009265,1.95,184.12,184.05,2.76]
[1760805009461,4.8878,184.09,184.05,2.76]
[1760805009665,4.8878,184.09,184.04,10.0589162]
[1760805010573,4.8878,184.09,184.05,2.76]
[1760805010764,4.8878,184.09,184.04,10.0589162]
[1760805011870,4.8878,184.09,184.05,2.76]
[1760805012071,4.8878,184.09,184.04,10.0589162]
[1760805012266,4.8878,184.09,184.05,12.8189162]
[1760805012468,4.8878,184.09,184.05,10.0589162]
[1760805013176,4.8878,184.09,184.06,2.76]
[1760805013674,6.8378,184.09,184.06,2.76]
[1760805013975,4.888,184.08,184.06,2.76]
[1760805015180,6.838,184.08,184.06,2.76]
[1760805016080,4.888,184.08,184.06,2.76]
[1760805016879,6.8383,184.07,184.06,6.7680938]
[1760805018472,6.8383,184.07,184.05,6.7680938]
[1760805018669,6.8387,184.05,184.03,6.7680938]
[1760805018873,1.95,184.04,184.03,9.38e-05]
[1760805019078,4.39845741,184.05,183.97,93.16203965]
[1760805019274,1.95,184.04,183.97,93.16203965]
[1760805020080,4.89,184.0,183.97,95.88203965]
[1760805020377,1.95,184.0,183.97,95.88203965]
[1760805022978,1.95,183.99,183.97,93.16203965]
[1760805023278,3.31845741,184.02,183.97,93.16203965]
[1760805023483,4.8904,183.99,183.97,93.16203965]
[1760805023682,1.95,183.98,183.97,93.16203965]
[1760805024586,1.95,183.97,183.94,2.72]
[1760805027378,6.841,183.97,183.89,2.72]
[1760805027577,1.95,183.97,183.89,2.72]
[1760805027983,4.8915,183.95,183.89,2.72]
[1760805028182,1.95,183.97,183.89,2.72]
[1760805028580,1.95,184.01,183.91,2.72]
[1760805029482,1.95,184.01,183.92,2.72]
[1760805029988,4.8903,183.99,183.92,2.72]
[1760805032090,4.8903,183.99,183.94,3.31845741]
[1760805032289,4.8903,183.99,183.95,2.72]
[1760805032491,4.8903,183.99,183.94,3.31845741]
[1760805032888,4.8903,183.99,183.95,2.72]
[1760805033493,4.8903,183.99,183.94,3.31845741]
[1760805034189,4.8903,183.99,183.95,2.72]
[1760805034984,4.8903,183.99,183.94,3.31845741]
[1760805035390,1.95,184.01,183.94,3.31845741]
[1760805035391,4.8897,184.01,183.95,2.72]
[1760805037998,4.8888,184.05,183.98,2.72]
[1760805038702,6.8388,184.05,184.01,2.72]
[1760805039096,6.8388,184.05,184.0,3.31845741]
[1760805039700,6.8388,184.05,184.01,2.72]
[1760805040797,6.8388,184.05,184.0,3.31845741]
[1760805041003,6.8388,184.05,184.01,2.72]
[1760805041198,1.95,184.05,184.0,3.31845741]
[1760805041395,1.95,184.08,184.04,2.72]
[1760805041599,1.95,184.15,184.04,2.72]
[1760805041800,13.09015741,184.16,184.04,2.72]
[1760805041801,4.8874,184.1,184.04,2.72]
[1760805043006,1.95,184.11,184.04,2.72]
[1760805044006,6.8373,184.11,184.04,2.72]
[1760805044306,1.95,184.11,184.04,2.72]
[1760805044905,3.31845741,184.16,184.04,2.72]
[1760805045104,15.88577285,184.12,184.0,2.72]
[1760805045407,1.95,184.12,184.0,2.72]
[1760805045607,3.31845741,184.13,184.0,2.72]
[1760805045815,1.95,184.04,183.99,3.31845741]
[1760805046212,1.95,184.04,184.0,2.72]
[1760805046614,1.93,184.03,183.99,6.14845741]
[1760805046813,1.93,184.03,183.99,2.83]
[1760805047808,3.31845741,184.1,183.99,2.83]
[1760805048117,1.93,184.06,183.99,2.83]
[1760805048318,1.93,184.05,183.99,2.83]
[1760805048615,1.93,183.99,183.96,2.83]
[1760805048917,4.89,184.0,183.95,3.31845741]
[1760805049117,1.93,183.99,183.96,2.83]
[1760805049818,1.93,183.99,183.93,2.83]
[1760805049819,4.8912,183.96,183.93,2.83]
[1760805050506,4.8912,183.96,183.91,2.83]
[1760805050715,4.8912,183.96,183.9,10.05512912]
[1760805051014,4.8912,183.96,183.91,2.83]
[1760805051216,3.31845741,184.03,183.91,2.83]
[1760805051217,6.8215,183.95,183.91,2.83]
[1760805051808,6.8215,183.95,183.9,10.05512912]
[1760805052011,6.8215,183.95,183.91,2.83]
[1760805052216,4.8918,183.94,183.9,3.31845741]
[1760805052412,4.8918,183.94,183.91,2.83]
[1760805052917,6.8218,183.94,183.91,2.83]
[1760805054116,6.8211,183.96,183.89,9.56667171]
[1760805054415,6.8211,183.96,183.89,2.83]
[1760805055015,1.93,183.96,183.89,2.83]
[1760805055414,1.93,183.96,183.89,4.95722334]
[1760805056016,6.8218,183.94,183.9,2.83]
[1760805058217,1.93,183.93,183.9,2.83]
[1760805059826,1.93,183.93,183.87,2.83]
[1760805060719,1.93,183.91,183.87,2.83]
[1760805060925,1.93,183.91,183.85,2.12722334]
[1760805062319,6.8226,183.91,183.85,2.12722334]
[1760805063019,6.8226,183.91,183.87,7.88825988]
[1760805063219,6.8226,183.91,183.87,2.83]
[1760805063525,4.8919,183.93,183.87,7.18548322]
[1760805063718,4.8919,183.93,183.87,10.01548322]
[1760805063916,1.93,183.97,183.91,2.12722334]
[1760805064119,1.93,183.97,183.91,7.18548322]
[1760805065320,4.8913,183.96,183.91,7.18548322]
[1760805065626,1.93,183.95,183.91,10.01548322]
[1760805066219,1.93,183.95,183.91,7.18548322]
[1760805066423,4.8906,183.98,183.92,2.81]
[1760805067119,1.95,183.96,183.92,2.81]
[1760805067920,1.95,183.96,183.93,2.12722334]
[1760805068525,9.776,184.08,183.95,2.12722334]
[1760805068526,6.8399,184.01,183.95,2.12722334]
[1760805068728,1.95,184.0,183.97,2.12722334]
[1760805069224,4.8902,184.0,183.97,2.12722334]
[1760805069423,9.776,184.08,183.95,7.86825988]
[1760805069424,1.95,184.03,183.95,2.12722334]
[1760805070328,6.8408,183.97,183.93,2.12722334]
[1760805070525,6.8408,183.97,183.93,4.93722334]
[1760805071121,6.8408,183.97,183.95,2.12722334]
[1760805074232,1.95,183.96,183.95,2.12722334]
[1760805075625,4.8913,183.96,183.93,2.12722334]
[1760805075825,1.95,183.95,183.93,2.12722334]
[1760805076329,6.8413,183.96,183.93,2.12722334]
[1760805076724,4.8913,183.96,183.95,2.12722334]
[1760805077530,6.8413,183.96,183.95,2.12722334]
[1760805078824,6.8417,183.94,183.93,2.12722334]
[1760805079428,2.12722334,183.97,183.88,5.05825988]
[1760805079634,1.95,183.96,183.88,2.12722334]
[1760805079929,1.95,183.94,183.86,2.12722334]
[1760805080126,1.95,183.92,183.84,98.13349658]
[1760805080326,1.95,183.92,183.84,2.12722334]
[1760805080533,1.95,183.9,183.84,2.12722334]
[1760805080830,4.8942,183.85,183.82,2.78]
[1760805081830,1.95,183.83,183.8,2.12722334]
[1760805082333,1.95,183.83,183.75,6.73667171]
[1760805082334,1.95,183.84,183.76,7.18548322]
[1760805083532,1.95,183.84,183.76,2.12722334]
[1760805083730,1.95,183.84,183.75,7.83825988]
[1760805083930,4.8953,183.81,183.76,2.12722334]
[1760805084131,4.8953,183.81,183.77,2.78]
[1760805084132,6.8453,183.81,183.77,2.78]
[1760805084432,6.8453,183.81,183.74,5.05825988]
[1760805084433,1.95,183.81,183.75,2.78]
[1760805085232,1.95,183.81,183.73,2.12722334]
[1760805085731,2.12722334,183.79,183.71,2.78]
[1760805086237,1.95,183.78,183.71,2.78]
[1760805086831,4.8961,183.77,183.71,2.78]
[1760805087236,45.14,183.86,183.64,5.05825988]
[1760805087237,2.12722334,183.73,183.64,5.05825988]
[1760805087430,1.95,183.72,183.64,2.12722334]
[1760805087737,4.897,183.74,183.67,2.12722334]
[1760805087938,1.95,183.71,183.67,2.12722334]
[1760805088132,1.95,183.71,183.64,2.78]
[1760805088332,1.95,183.76,183.68,2.12722334]
[1760805089231,4.07722334,183.76,183.68,2.12722334]
[1760805089826,4.8969,183.75,183.7,2.12722334]
[1760805090026,6.8469,183.75,183.7,4.90722334]
[1760805090333,4.8972,183.73,183.68,2.12722334]
[1760805090534,1.95,183.72,183.68,2.12722334]
[1760805091033,6.8466,183.76,183.69,2.78]
[1760805091225,6.8466,183.76,183.7,2.12722334]
[1760805092238,7.02412334,183.75,183.69,2.78]
[1760805092429,1.95,183.74,183.64,2.12722334]
[1760805092633,1.95,183.74,183.65,2.78]
[1760805093936,4.8972,183.73,183.65,2.78]
[1760805094843,7.02442334,183.73,183.65,2.78]
[1760805095245,4.8977,183.72,183.65,2.78]
[1760805095447,16.56060976,183.81,183.67,2.78]
[1760805095448,1.95,183.78,183.67,2.78]
[1760805095640,2.12722334,183.76,183.67,2.12722334]
[1760805095837,4.07722334,183.78,183.69,2.12722334]
[1760805096845,4.07722334,183.78,183.69,4.90722334]
[1760805097445,4.07722334,183.78,183.69,2.78]
[1760805097646,4.07722334,183.78,183.69,4.90722334]
[1760805098149,4.8969,183.75,183.69,4.90722334]
[1760805099643,6.8471,183.74,183.7,2.78]
[1760805103750,6.8471,183.74,183.67,2.12722334]
[1760805103751,6.8471,183.74,183.68,2.78]
[1760805106550,4.8964,183.76,183.69,2.12722334]
[1760805106750,4.8964,183.76,183.62,0.94740281]
[1760805106751,4.8964,183.76,183.72,2.71]
[1760805106953,1.95,183.8,183.72,2.71]
[1760805107250,1.95,183.76,183.69,2.71]
[1760805107447,1.95,183.79,183.71,2.71]
[1760805107647,2.12722334,183.78,183.71,2.71]
[1760805107848,4.896,183.78,183.71,2.71]
[1760805108751,4.896,183.78,183.73,2.71]
[1760805108957,2.12722334,183.8,183.64,2.71]
[1760805109166,2.12722334,183.8,183.72,2.12722334]
[1760805109452,1.95,183.81,183.73,2.71]
[1760805109453,4.8957,183.79,183.73,2.71]
[1760805110045,6.8451,183.81,183.73,2.71]
[1760805110258,4.8951,183.81,183.76,2.12722334]
[1760805110451,1.95,183.85,183.75,2.71]
[1760805110756,2.12722334,183.84,183.75,2.71]
[1760805111351,2.12722334,183.85,183.79,2.71]
[1760805111652,2.12722334,183.87,183.79,2.71]
[1760805112058,4.8941,183.85,183.79,2.71]
[1760805113752,4.8944,183.84,183.79,2.71]
[1760805114760,4.8944,183.84,183.78,2.71]
[1760805116856,1.95,183.88,183.78,2.71]
[1760805117062,3.32734212,183.93,183.81,2.71]
[1760805117562,1.95,183.92,183.81,2.71]
[1760805117861,4.8924,183.91,183.84,2.71]
[1760805119464,1.95,183.91,183.84,2.71]
[1760805119965,4.894,183.86,183.8,2.71]
[1760805120164,1.95,183.88,183.8,2.71]
[1760805120761,3.32734212,183.89,183.8,2.71]
[1760805120958,1.95,183.85,183.76,2.71]
[1760805121158,3.32734212,183.95,183.76,7.76825988]
[1760805121159,3.32734212,183.89,183.76,7.76825988]
[1760805121364,4.8937,183.87,183.77,2.71]
[1760805121567,4.8937,183.87,183.78,2.71]
[1760805121766,3.32734212,183.95,183.77,8.385602]
[1760805121767,1.95,183.91,183.79,5.05825988]
[1760805121964,1.95,183.88,183.8,2.71]
[1760805123269,4.8938,183.86,183.8,2.71]
[1760805124172,6.8433,183.88,183.82,3.32734212]
[1760805124376,1.95,183.92,183.83,2.71]
[1760805124570,3.32734212,183.95,183.83,2.71]
[1760805124571,1.95,183.95,183.86,2.71]
[1760805124771,1.95,183.95,183.88,3.32734212]
[1760805125273,4.8921,183.93,183.88,3.32734212]
[1760805125577,6.8421,183.93,183.88,6.03734212]
[1760805125972,1.95,183.92,183.85,3.32734212]
[1760805127372,6.8422,183.92,183.85,3.32734212]
[1760805127679,1.95,183.92,183.85,3.32734212]
[1760805127877,4.8928,183.9,183.85,3.32734212]
[1760805128072,6.8428,183.9,183.85,6.02734212]
[1760805128480,1.95,183.9,183.82,3.32734212]
[1760805128976,1.95,183.88,183.81,2.7]
[1760805129974,4.894,183.85,183.81,2.7]
[1760805130176,1.95,183.88,183.81,2.7]
[1760805130576,4.8939,183.86,183.81,2.7]
[1760805130776,6.8439,183.86,183.81,2.7]
[1760805130975,1.95,183.9,183.77,5.05825988]
[1760805131278,3.32734212,183.88,183.76,11.085602]
[1760805131480,4.8947,183.83,183.76,6.02734212]
[1760805131778,1.95,183.87,183.76,2.7]
[1760805131972,1.95,183.84,183.73,3.32734212]
[1760805132279,4.8955,183.8,183.72,7.75825988]
[1760805132575,4.8955,183.8,183.72,11.085602]
[1760805132976,1.95,183.81,183.72,11.085602]
[1760805132977,4.8958,183.79,183.72,11.085602]
[1760805133173,3.32734212,183.86,183.74,2.7]
[1760805133373,3.32734212,183.77,183.73,5.05825988]
[1760805133576,1.95,183.74,183.68,7.75825988]
[1760805133873,1.95,183.74,183.65,5.05825988]
[1760805134082,1.95,183.74,183.64,5.05825988]
[1760805134275,4.8975,183.72,183.64,5.05825988]
[1760805134471,4.8975,183.72,183.63,2.7]
[1760805134472,1.95,183.74,183.65,2.7]
[1760805134981,4.8974,183.73,183.65,2.7]
[1760805135473,1.95,183.74,183.65,2.7]
[1760805135679,4.8978,183.71,183.65,2.7]
[1760805136881,6.8472,183.74,183.65,2.7]
[1760805137571,1.95,183.71,183.65,2.7]
[1760805138983,6.848,183.71,183.65,2.7]
[1760805139485,6.848,183.71,183.63,5.05825988]
[1760805139872,6.848,183.71,183.62,97.57397596]
[1760805140076,6.848,183.71,183.63,5.05825988]
[1760805140476,6.848,183.71,183.62,97.57397596]
[1760805141482,1.95,183.71,183.62,92.51571608]
[1760805141677,85.09559283,183.79,183.6,5.05825988]
[1760805141881,8.94049283,183.75,183.59,5.05825988]
[1760805142082,1.95,183.73,183.59,5.05825988]
[1760805142478,4.8995,183.65,183.58,7.84825988]
[1760805143182,107.5885,183.7,183.54,6.73667171]
[1760805143377,107.5885,183.7,183.5,50.0]
[1760805143378,1.95,183.66,183.5,50.0]
[1760805143578,8.94049283,183.67,183.5,50.0]
[1760805143780,6.8511,183.59,183.5,50.0]
[1760805143977,1.95,183.63,183.51,2.79]
[1760805144875,4.8988,183.68,183.57,2.79]
[1760805145974,1.95,183.7,183.57,2.79]
[1760805146382,4.8988,183.68,183.57,2.79]
[1760805146683,1.95,183.67,183.57,2.79]
[1760805146879,4.8988,183.68,183.57,2.79]
[1760805147082,1.95,183.7,183.59,2.79]
[1760805147982,4.8982,183.7,183.6,2.79]
[1760805148377,4.8974,183.73,183.62,2.79]
[1760805148779,1.95,183.79,183.63,2.79]
[1760805148979,1.95,183.79,183.64,2.79]
[1760805149183,4.8967,183.75,183.65,4.8993]
[1760805149381,4.8967,183.75,183.66,2.79]
[1760805149783,1.95,183.75,183.66,2.79]
[1760805150183,1.95,183.74,183.59,2.79]
[1760805150578,8.94049283,183.75,183.59,2.79]
[1760805150986,4.8985,183.68,183.59,2.79]
[1760805151785,4.8991,183.66,183.59,2.79]
[1760805151987,1.95,183.68,183.59,2.79]
[1760805152493,6.8488,183.68,183.59,2.79]
[1760805153081,1.95,183.68,183.59,2.79]
[1760805153881,2.07985682,183.87,183.67,8.94049283]
[1760805154082,2.07985682,183.87,183.51,93.50172694]
[1760805154083,2.72,184.04,183.86,8.94049283]
[1760805154287,2.72,184.04,183.93,8.94049283]
[1760805154585,75.9985,184.17,183.93,8.94049283]
[1760805154586,2.72,184.02,183.93,8.94049283]
[1760805154781,5.3,184.02,183.93,8.94049283]
[1760805155087,16.5038238,184.12,183.82,8.94049283]
[1760805155088,8.94049283,184.04,183.82,8.94049283]
[1760805155486,2.72,184.02,183.82,8.94049283]
[1760805155785,2.72,183.98,183.78,4.8958]
[1760805155986,8.94049283,183.99,183.78,4.8958]
[1760805156481,14.48,183.98,183.78,4.8958]
[1760805156685,2.72,183.97,183.78,4.8958]
[1760805157089,25.38,183.96,183.78,4.8958]
[1760805157290,2.72,183.95,183.79,8.94049283]